Cogmind - Beta 13 @@@ ROGUE MODE // 2024.07.05 @ 21:59:14 Player: ywiktor Result: Destroyed by as-05947 with Assembled Heavy Rifle Performance ------------- Evolutions (0) 0 Regions Visited (4) 800 Robots Destroyed (22) 110 Value Destroyed (553) 553 Prototype IDs (3) 60 Alien Tech Used (0) 0 Bonus (300) 300 TOTAL SCORE: 1823 Bonus ------- Aligned with FarCom 300 Cogmind --------- Core Integrity 0/250 Matter 244/300 Energy 99/100 System Corruption 4% Temperature Cool (0) Movement Core (100) Ox1 Location -9/Mines Parts ------- > --- POWER (1) -------- (None) > --- PROPULSION (2) --- (None) > --- UTILITY (2) ------ Signal Interpreter > --- WEAPON (2) ------- Light Assault Rifle Rocket Launcher > --- INVENTORY (5) ---- Ion Engine Aluminum Leg Grenade Launcher Field Lobotomy Kit (5) Peak State ------------ > --- POWER ------------ Ion Engine > --- PROPULSION ------- Aluminum Leg Aluminum Leg > --- UTILITY ---------- Medium Storage Unit Signal Interpreter > --- WEAPON ----------- Field Lobotomy Kit > --- INVENTORY -------- Ion Engine Light Ion Engine Aluminum Leg Aluminum Leg Flight Unit Flight Unit Small Storage Unit Light Assault Rifle Grenade Launcher Rocket Launcher [Rating: 16] Favorites ----------- Power Light Ion Engine Engine Light Ion Engine Propulsion Aluminum Leg Leg Aluminum Leg Flight Unit Flight Unit Utility Signal Interpreter Device Cloak of Protection Storage Medium Storage Unit Processor Signal Interpreter Weapon Light Assault Rifle Energy Gun EM Pulse Gun Ballistic Gun Light Assault Rifle Ballistic Cannon Light Cannon Launcher Rocket Launcher Special Weapon Field Lobotomy Kit Build | -11 -10 -10 -10 -9 ------- Run | Yrd Mat Min Exi Min Slots Evolved . | . . . . . Power . | . . . . . Propulsion . | . . . . . Utility . | . . . . . Weapon . | . . . . . Parts Attached 25 | 6 6 4 7 2 Power 3 | 1 1 1 . . Engine 3 | 1 1 1 . . Core . | . . . . . Reactor . | . . . . . Propulsion 7 | 2 2 2 . 1 Treads . | . . . . . Leg 6 | 2 2 2 . . Wheel . | . . . . . Hover . | . . . . . Flight 1 | . . . . 1 Utility 6 | 1 2 . 3 . Device 2 | . . . 2 . Storage 3 | 1 1 . 1 . Processor 1 | . 1 . . . Hackware . | . . . . . Protection . | . . . . . Artifact . | . . . . . Weapon 9 | 2 1 1 4 1 Energy Gun 3 | 1 . 1 1 . Energy Cannon . | . . . . . Ballistic Gun 2 | 1 . . 1 . Ballistic Cannon 2 | . 1 . 1 . Launcher 1 | . . . . 1 Special Weapon 1 | . . . 1 . Impact Weapon . | . . . . . Slashing Weapon . | . . . . . Piercing Weapon . | . . . . . Special Melee Weapon . | . . . . . Unidentified Prototypes 3 | . . . 3 . Parts Lost 7 | . 2 1 . 4 Power 2 | . 1 . . 1 Propulsion 3 | . . . . 3 Utility . | . . . . . Weapon 2 | . 1 1 . . Highest Loss Streak 4 | . 1 1 . 4 To Critical Strikes . | . . . . . Average Slot Usage (%) 96 | . 95 100 96 95 Engine 13 | . 13 14 14 12 Leg 27 | . 28 28 28 24 Storage 13 | . 14 14 13 12 Processor 12 | . 10 14 14 14 Energy Gun 9 | . 10 13 6 . Ballistic Gun 8 | . 14 . 5 14 Ballistic Cannon 7 | . 2 14 12 . Naked Turns . | . . . . . Heaviest Build 20 | 11 17 20 20 20 Greatest Support 20 | 20 20 20 20 20 Greatest Overweight (x) 1 | . . . . 1 Average Overweight (x) . | . . . . . Largest Inventory Capacity 10 | 8 10 10 10 10 Average Capacity 9 | 6 9 10 9 9 Most Carried 10 | 2 10 10 10 10 Average Carried 8 | 1 8 9 9 9 Final Capacity 10 | 8 10 10 10 5 Final Carried 10 | 2 9 10 10 4 Class Distribution -------------------- 83% | Mutant 16% | Scavenger-Mutant Dominant Class ---------------- Mutant | -10/Materials Mutant | -10/Mines Scavenger-Mutant | -10/Exiles Scavenger-Mutant | -9/Mines Resources | -11 -10 -10 -10 -9 ----------- Run | Yrd Mat Min Exi Min Matter Collected 561 | 238 99 123 . 101 Remotely . | . . . . . Salvage Created 603 | . 324 234 . 45 Parts 46 | . 27 16 . 3 Haulers Intercepted . | . . . . . Recyclers Shooed . | . . . . . Parts Field Recycled . | . . . . . Retrieved Matter . | . . . . . Parts Self-Destructed . | . . . . . Prevented . | . . . . . Kills | -11 -10 -10 -10 -9 ------- Run | Yrd Mat Min Exi Min Combat Hostiles Destroyed 30 | . 9 9 . 12 Guns 10 | . 8 2 . . Cannons 7 | . . 7 . . AOE 13 | . 1 . . 12 Classes Destroyed 4 | . 3 . . 1 Operator 1 | . 1 . . . Swarmer 9 | . 3 3 . 3 Grunt 12 | . 6 6 . . Assembled 9 | . . . . 9 Best Kill Streak 9 | . 3 3 . 9 Combat Bots Only 9 | . 3 3 . 9 Max Kills in Single Turn 3 | . 1 2 . 3 Gunslinging . | . . . . . Exploded 3 | . 1 . . 3 Melee . | . . . . . Uniques/NPCs Destroyed . | . . . . . Combat | -11 -10 -10 -10 -9 -------- Run | Yrd Mat Min Exi Min Hostile Shots Fired 109 | . 30 31 . 48 Missed 24 | . 5 5 . 14 Damage Taken 1259 | . 418 312 . 529 Core 261 | . 75 42 . 144 Absorbed by Shields . | . . . . . Core Remaining (%) 100 | 100 . . . . Volleys Fired 56 | . 27 22 . 7 Largest 2 | . 2 2 . 1 Hottest 85 | . 60 85 . 33 Shots Fired 104 | . 54 43 . 7 Gun 72 | . 51 21 . . Cannon 25 | . 3 22 . . Launcher 7 | . . . . 7 Special . | . . . . . Kinetic 54 | . 30 24 . . Thermal 19 | . . 19 . . Explosive 7 | . . . . 7 Electromagnetic 24 | . 24 . . . Robot Hit Streak 8 | . 8 7 . 3 Robot Miss Streak 3 | . 3 3 . 3 Penetration Max . | . . . . . Secondary Targets 1 | . 1 . . . Max Gunslinging Chain 1 | . 1 . . . Shots Hit Robots 68 | . 37 29 . 2 Core Hits 55 | . 17 13 . 25 Critical Kills . | . . . . . Critical Parts Destroyed . | . . . . . Critical Strikes 1 | . . 1 . . Blast 1 | . . 1 . . Melee Attacks . | . . . . . Impact . | . . . . . Slashing . | . . . . . Piercing . | . . . . . Sneak Attacks . | . . . . . Combat Hostiles . | . . . . . Follow-up Attacks . | . . . . . Damage Inflicted 1920 | . 496 463 . 961 Guns 511 | . 363 148 . . Cannons 347 | . 36 311 . . Explosions 1058 | . 97 . . 961 Melee . | . . . . . Ramming 4 | . . 4 . . Kinetic 492 | . 171 321 . . Thermal 235 | . 97 138 . . Explosive 961 | . . . . 961 Electromagnetic 228 | . 228 . . . Impact . | . . . . . Slashing . | . . . . . Piercing . | . . . . . Highest Corruption 4 | . . . . 4 Average Corruption 4 | . . . . 4 Corruption Purged . | . . . . . Corruption Blocked . | . . . . . Overload Shots . | . . . . . Overflow Damage 5 | . . . . 5 Projectiles . | . . . . . Explosions 5 | . . . . 5 Melee . | . . . . . Knockbacks 3 | . 1 2 . . Impact . | . . . . . Kinetic 2 | . 1 1 . . Secondary 1 | . . 1 . . Self-Inflicted Damage 53 | . 30 . . 23 Shots 3 | . 1 . . 2 Rammed . | . . . . . Targets Rammed 1 | . . 1 . . Kicked 1 | . . 1 . . Crushed . | . . . . . Highest Temperature 282 | . 62 282 . . Average Temperature 60 | . 26 89 . . Received Heat Transfer 279 | . 135 144 . . Siege Activations . | . . . . . Robots Corrupted . | . . . . . Combat Hostiles . | . . . . . Parts Fried . | . . . . . Impact Corruptions . | . . . . . Robots Melted . | . . . . . Combat Hostiles . | . . . . . Parts Melted . | . . . . . Heat Transferred 507 | . 100 407 . . Parts Sabotaged . | . . . . . Parts Stolen . | . . . . . Parts Stripped . | . . . . . Power Chain Reactions 1 | . 1 . . . Alert | -11 -10 -10 -10 -9 ------- Run | Yrd Mat Min Exi Min Peak Influence 289 | . 276 289 . 102 Initial 64 | . . 64 . . Average 139 | . 139 166 . 72 Maximum Alert Level 1 | . 1 1 . . Low Security (%) 88 | 100 85 89 . 100 Level 1 11 | . 14 10 . . Level 2 . | . . . . . Level 3 . | . . . . . Level 4 . | . . . . . Level 5 . | . . . . . High Security . | . . . . . Max Security . | . . . . . Squads Dispatched 2 | . 2 . . . Investigation 1 | . 1 . . . Extermination . | . . . . . Reinforcement 1 | . 1 . . . Assault . | . . . . . Garrison . | . . . . . Intercept . | . . . . . Searches Triggered . | . . . . . Construction Impeded . | . . . . . Haulers Reinforced . | . . . . . Active Scanning Responses . | . . . . . Cargo Convoy Interrupts . | . . . . . Stealth | -11 -10 -10 -10 -9 --------- Run | Yrd Mat Min Exi Min Distress Signals . | . . . . . Communications Jammed . | . . . . . Distress Signals . | . . . . . Times Spotted 52 | . 19 11 . 22 Peak Tracking Total 19 | . 4 4 . 19 Tactical Retreats 3 | . 1 2 . . Traps | -11 -10 -10 -10 -9 ------- Run | Yrd Mat Min Exi Min Traps Triggered 1 | . 1 . . . Indirectly . | . . . . . Trap Hack Attempts . | . . . . . Triggered . | . . . . . Disarmed . | . . . . . Reprogrammed . | . . . . . Reused . | . . . . . Traps Extracted . | . . . . . Installed . | . . . . . Triggered . | . . . . . Machines | -11 -10 -10 -10 -9 ---------- Run | Yrd Mat Min Exi Min Machines Disabled . | . . . . . Max in Single Turn . | . . . . . Machines Repaired . | . . . . . Machines Dismantled . | . . . . . Machines Sabotaged . | . . . . . Overloaded Fab Kills . | . . . . . Hacking | -11 -10 -10 -10 -9 --------- Run | Yrd Mat Min Exi Min Machines Accessed 1 | . 1 . . . Terminals 1 | . 1 . . . Fabricators . | . . . . . Repair Stations . | . . . . . Recycling Units . | . . . . . Scanalyzers . | . . . . . Garrison Access . | . . . . . Total Hacks 3 | . 3 . . . Successful 1 | . 1 . . . Failed 2 | . 2 . . . Catastrophic 1 | . 1 . . . Database Lockouts . | . . . . . Manual 4 | . 3 . 1 . Terminals 3 | . 3 . . . Fabricators . | . . . . . Repair Stations . | . . . . . Recycling Units . | . . . . . Scanalyzers . | . . . . . Garrison Access . | . . . . . Terminal Hacks . | . . . . . Fabricator Hacks . | . . . . . Repair Station Hacks . | . . . . . Recycling Unit Hacks . | . . . . . Scanalyzer . | . . . . . Garrison Access Hacks . | . . . . . Unauthorized Hacks 1 | . 1 . . . Terminals 1 | . 1 . . . Botnet 1 | . 1 . . . Fabricators . | . . . . . Repair Stations . | . . . . . Recycling Units . | . . . . . Scanalyzers . | . . . . . Garrison Access . | . . . . . Data Cores Recovered . | . . . . . Used . | . . . . . Hacking Detections . | . . . . . Full Trace Events . | . . . . . Feedback Events . | . . . . . Feedback Blocked . | . . . . . Robot Schematics Acquired . | . . . . . Robots Built . | . . . . . Authchips . | . . . . . Time . | . . . . . Total Robot Build Rating . | . . . . . Part Schematics Acquired . | . . . . . Parts Built . | . . . . . Authchips . | . . . . . Time . | . . . . . Total Part Build Rating . | . . . . . Parts Repaired . | . . . . . Time . | . . . . . Parts Recycled . | . . . . . Recycled Matter . | . . . . . Retrieved Matter . | . . . . . Retrieved Components . | . . . . . Parts Scanalyzed . | . . . . . Part Schematics Acquired . | . . . . . Parts Damaged . | . . . . . Bothacking | -11 -10 -10 -10 -9 ------------ Run | Yrd Mat Min Exi Min Used RIF Installer . | . . . . . Robots Hacked . | . . . . . Non-combat . | . . . . . Combat . | . . . . . Robot Hacks Applied . | . . . . . Relay Couplers Released . | . . . . . Fabnet Peak Effective % . | . . . . . Robots Rewired . | . . . . . Allies Hacked . | . . . . . Hacks Repelled . | . . . . . Allies | -11 -10 -10 -10 -9 -------- Run | Yrd Mat Min Exi Min Total Allies . | . . . . . Largest Group . | . . . . . Highest-Rated Group . | . . . . . Highest-Rated Ally . | . . . . . Total Orders . | . . . . . Ally Attacks . | . . . . . Total Damage . | . . . . . Kills . | . . . . . Allies Corrupted . | . . . . . Allies Melted . | . . . . . Intel | -11 -10 -10 -10 -9 ------- Run | Yrd Mat Min Exi Min Robot Analysis Total . | . . . . . Derelict Logs Recovered . | . . . . . Drone Launches . | . . . . . Drone Recoveries . | . . . . . Exploration | -11 -10 -10 -10 -9 ------------- Run | Yrd Mat Min Exi Min Turns Passed 1641 | 48 734 436 338 85 Spaces Moved 1104 | 34 489 258 266 57 Core 6 | 5 . . . 1 Treads . | . . . . . Legs 1095 | 29 489 258 266 53 Wheels . | . . . . . Hover . | . . . . . Flight 3 | . . . . 3 Fastest Speed 50 | 50 120 120 120 100 Average Speed 119 | 109 120 120 120 119 Slowest Speed 130 | 120 120 120 120 130 Overloaded Moves . | . . . . . Propulsion Burnouts . | . . . . . Robots Hopped . | . . . . . Cave-ins Triggered . | . . . . . Exploration Rate (%) 38 | 3 61 49 61 17 Regions Visited 4 Branch Regions 3 Pre-discovered Areas . | . . . . . Known Exits Taken 3 | . 1 1 1 . Unknown Exits Taken 1 | 1 . . . . Scrap Searched 1 | . . 1 . . Spaces Dug . | . . . . . Terrain Destroyed 50 | . 4 . . 46 Melee . | . . . . . Projectile . | . . . . . AOE 50 | . 4 . . 46 Terrain Rammed . | . . . . . Walls Destroyed . | . . . . . Machines Disabled . | . . . . . Actions | -11 -10 -10 -10 -9 --------- Run | Yrd Mat Min Exi Min Total 1325 | 41 586 344 287 67 Wait 108 | . 57 51 . . Move 1100 | 33 488 257 265 57 Hop . | . . . . . Pick Up 20 | 2 7 4 7 . Fast Attach 13 | 6 1 . 6 . Attach 4 | . 2 1 . 1 Detach . | . . . . . Swap 8 | . 3 3 1 1 Drop 15 | . 1 5 8 1 Fire 56 | . 27 22 . 7 Melee . | . . . . . Ram . | . . . . . Kick 1 | . . 1 . . Crush . | . . . . . Escape Stasis . | . . . . . Rewire . | . . . . . Trap . | . . . . . Miscellaneous . | . . . . . Route ------- -11/Scrapyard -10/Materials (discovered 2 exits: [*Mat] / *Min) -10/Mines (discovered 2 exits: [*Mat] / *Exi) -10/Exiles -9/Mines History --------- Turn | Location | Event 2 | -11/Scrapyard | Discovered new exit (range 16) 49 | -11/Scrapyard | Entered Materials 323 | -10/Materials | Build established: Mutant 390 | -10/Materials | Discovered new exit (range 16) 511 | -10/Materials | Discovered new exit (range 13) 782 | -10/Materials | Identified exit to Mines 783 | -10/Materials | Entered Mines 811 | -10/Mines | Discovered new exit (range 6) 1175 | -10/Mines | Received a Rocket Launcher from a helpful Derelict 1213 | -10/Mines | Deemed a non-threat by the Exiles lab entrance 1213 | -10/Mines | Discovered new exit (range 5) 1217 | -10/Mines | Identified exit to Exiles 1219 | -10/Mines | Entered Exiles 1248 | -10/Exiles | Met 8R-AWN 1270 | -10/Exiles | Met EX-HEX 1308 | -10/Exiles | Met EX-BIN 1323 | -10/Exiles | Aligned with FarCom system 1324 | -10/Exiles | Given EX-Vault access code 1355 | -10/Exiles | Opened EX-Vault 1363 | -10/Exiles | Found Prototype Special Weapon 1363 | -10/Exiles | Identified Field Lobotomy Kit 1368 | -10/Exiles | Found Prototype Device 1368 | -10/Exiles | Identified Cloak of Protection 1374 | -10/Exiles | Found Prototype Device 1374 | -10/Exiles | Identified Supersonic Drone Bay 1439 | -10/Exiles | Warned to stay clear of 0b10 Research branches 1479 | -10/Exiles | Met EX-DEC 1546 | -10/Exiles | Discovered new exit (range 10) 1556 | -10/Exiles | Identified exit to Mines 1557 | -10/Exiles | Left Exiles lab with Field Lobotomy Kit 1557 | -10/Exiles | Entered Mines 1562 | -9/Mines | Core integrity fell below 50% 1578 | -9/Mines | Met a Derelict bent on vengeance 1617 | -9/Mines | Assembled infested the area 1637 | -9/Mines | Core integrity fell below 20% 1642 | -9/Mines | Destroyed by as-05947 with Assembled Heavy Rifle Last Messages --------------- 01625_ as-21322 destroyed. 01627_ as-39455 destroyed. 01629_ as-57127 destroyed. 01629_ as-11035 destroyed. 01630_ Aluminum Leg destroyed. 01631_ as-96074 destroyed. 01631_ as-45074 destroyed. 01633_ as-46677 destroyed. 01633_ Destroyed Asb. Hover Unit. 01633_ as-91776 destroyed. 01633_ as-27348 destroyed. 01637_ Dropped Med. Storage Unit. 01637_ Knocked back. 01638_ Ion Engine destroyed. 01638_ K-01 Serf collects debris. 01639_ Aluminum Leg destroyed. 01639_ System corrupted by crushing effect (+4). 01640_ as-38880 destroyed. 01641_ Flight Unit destroyed. 01642_ K-01 Serf collects debris. Map ----- +----------------------------------------------------+ | ?????????????????????????????????????? | | ?????????????????????????????????????? | | ??????????????????????????????#######? | | ??????????????????????###?????# #? | | ?????????????????????? #?????# ## | | ?????????????????????? #?????# # | | ??????????????????????# #?????# # | | ??????????????????????# #?????# =% # | | ??????????????????????# #?##### [ # | | ??????????????????????# #?# # | | ??????????????????????# ### ### ## | | ?????????###??????????# #?#######? | | ????????? ??????##??# #####????????? | | ????????# ????# ##?# #????????????? | | ???????? ?## #?# #????????????? | | ?????????? ## ??# ######???????? | | ??????????? ?## ## ##??????? | | ??????? ??? ??# #??????? | | ??????# ### #??# ##?????? | | ??????# #?## ##????? | | ?????## ??#### #????? | | ?????# ##???## #????? | | ???#! !=#???## #????? | | !%= % *!##?## ##????? | | = a%a% =a### ##?????? | | ? aa @ ##??????? | | ? # # r k #???????? | | ?? ???## # ?##### ##???????? | | ?? ????????#???????## ##????????? | | ?????????????????????#######?????????? | | ?????????????????????????????????????? | | ?????????????????????????????????????? | | ?????????????????????????????????????? | | ?????????????????????????????????????? | | ?????????????????????????????????????? | | ?????????????????????????????????????? | | ?????????????d???????????????????????? | | ??????????????d??????????????????????? | | ?????????????????????????????????????? | | ?????????????????????????????????????? | | ?????????????????????????????????????? | | ?????????????????????????????????????? | | ?????????????????????????????????????? | | ?????????????????????????????????????? | | ?????????????????????????????????????? | | ?????????????????????????????????????? | | ?????????????????????????????????????? | | ?????????????????????????????????????? | | ?????????????????????????????????????? | | ?????????????????????????????????????? | +----------------------------------------------------+ Best States ------------- Heat Dissipation 25 Energy Generation 10 Energy Capacity 250 Matter Stores 300 Matter Capacity 300 Sight Range 16 Terrain Scan Density 10 Cloak Strength 5 Evasion (%) 55 Item Schematics ----------------- None Robot Schematics ------------------ None Fabricated ------------ Nothing Alien Tech Used ----------------- None Achievements -------------- None Challenges ------------ None Game ------ Seed GravitonCoolingStreamer Manual? 0 Play Time 00:12:55 Cumulative 32.0 hours Start 2024.07.04 @ 19:36:51 End 2024.07.05 @ 21:59:14 Sessions 3 Manual Loads 0 Difficulty Rogue Special Mode None Game No. 32 Rogue 32 Adventurer 0 Explorer 0 Win Type - Total 0 Types 0/0/0/0/0/0/0/0/0 Lore% 36 Gallery% 35 Achievement% 33 Wizard Run 0 Options --------- Layout 1 ASCII 0 Keyboard 0 Movement Numpad Keybinds 0 Fullscreen 1 Font 32/SmallcapsGlow Map View 50x35 Zoom Use 0% Tactical HUD 1 Map Filters NONE Filters NONE Steam 1 RUN: 875f6142-699a-455e-be66-d4cd27bbcc26